bitfinex/quotes_ETHUSD_20220112
["timestamp","ask_amount","ask_price","bid_price","bid_amount"]
[1641995938578,0.03783172,3371.5,3370.4,0.00852635]
[1641995938777,0.01248095,3371.6,3370.4,0.00852635]
[1641995938980,0.0310038,3371.5,3370.4,0.00852635]
[1641995939178,4.2031,3371.6,3370.4,0.00852635]
[1641995939378,4.2031,3371.6,3370.2,0.0096632]
[1641995939578,4.2031,3371.6,3370.6,0.3707733]
[1641995939830,4.2031,3371.6,3370.4,0.7415377]
[1641995940030,4.2031,3371.6,3370.7,0.00682108]
[1641995940226,0.95934077,3371.5,3370.5,0.00795793]
[1641995940426,0.88284718,3370.5,3370.1,1.52032168]
[1641995940728,0.00511581,3371.4,3370.5,7.45]
[1641995940926,0.00511581,3371.4,3370.8,0.741389]
[1641995941126,0.89071065,3371.5,3370.9,2.45787419]
[1641995941127,0.00454739,3371.3,3370.9,2.45787419]
[1641995941325,0.00454739,3371.3,3370.9,2.75787419]
[1641995941526,0.00397896,3371.2,3370.9,3.49926419]
[1641995941727,0.74136,3373.4,3370.9,3.49926419]
[1641995941728,2.220687,3372.9,3371.1,24.82258499]
[1641995941928,4.0735,3372.8,3371.2,3.07197586]
[1641995942126,0.00113685,3371.4,3371.2,3.10466501]
[1641995942331,0.00113685,3371.4,3371.3,7.9117712]
[1641995942626,0.00113685,3371.4,3371.0,0.59426034]
[1641995942627,0.00832282,3371.3,3371.0,0.59426034]
[1641995942827,0.00113685,3371.4,3371.0,0.59426034]
[1641995942828,0.00113685,3371.4,3371.2,0.2965834]
[1641995943229,0.00113685,3371.4,3371.3,9.54762532]
[1641995943471,0.00113685,3371.4,3371.3,7.48742975]
[1641995943671,0.00113685,3371.4,3371.3,7.84942975]
[1641995943874,0.00113685,3371.4,3371.3,8.60332118]
[1641995944072,0.1186,3373.0,3371.8,0.8893658]
[1641995944271,2.18682314,3373.4,3371.9,0.04254207]
[1641995944471,0.00568424,3372.4,3371.9,1.48236]
[1641995944671,0.00568424,3372.4,3371.9,1.81483206]
[1641995944874,0.00511581,3372.3,3371.9,1.78236]
[1641995945074,0.01554987,3372.2,3372.1,0.296461]
[1641995945273,0.00454739,3372.2,3372.0,2.075232]
[1641995945472,0.00454739,3372.2,3372.0,0.592922]
[1641995945672,0.00397897,3372.1,3372.0,0.592922]
[1641995945878,0.00397897,3372.1,3372.0,4.092922]
[1641995946282,0.00397897,3372.1,3371.6,1.4825]
[1641995946481,0.03681327,3372.0,3371.6,1.4825]
[1641995946680,0.00341054,3372.0,3371.7,0.5930334]
[1641995946880,0.00284212,3371.9,3371.7,0.2965624]
[1641995947080,0.1307676,3372.7,3371.6,3.5]
[1641995947355,0.1307676,3372.7,3371.6,4.98267]
[1641995947356,0.00284212,3372.4,3371.6,4.98267]
[1641995947556,0.00284212,3372.4,3371.6,4.98437527]
[1641995947754,0.04307645,3372.2,3371.6,1.48437527]
[1641995947955,0.04307645,3372.2,3371.9,0.2965339]
[1641995948157,0.00113685,3372.1,3371.9,0.2965339]
[1641995948554,0.00170527,3372.2,3372.0,0.00748112]
[1641995948754,0.00170527,3372.2,3371.9,0.2965339]
[1641995948958,4.0735,3372.8,3372.0,0.3]
[1641995948959,0.00113685,3372.1,3372.0,0.3]
[1641995949154,0.00113685,3372.1,3371.9,0.2965339]
[1641995950263,0.00113685,3372.1,3371.8,0.6]
[1641995950557,0.00113685,3372.1,3371.8,0.8965285]
[1641995951573,0.00113685,3372.1,3371.8,1.6378085]
[1641995951777,0.00113685,3372.1,3371.9,0.01670949]
[1641995951974,0.00113685,3372.1,3371.9,0.362]
[1641995952173,0.00113685,3372.1,3371.9,0.37253626]
[1641995952378,0.00113685,3372.1,3371.9,0.362]
[1641995952979,0.00113685,3372.1,3371.9,0.39759074]
[1641995953177,0.00113685,3372.1,3371.9,17.75759074]
[1641995953379,0.00113685,3372.1,3372.0,13.05681183]
[1641995953579,0.00113685,3372.1,3372.0,14.01881183]
[1641995953877,0.27639994,3373.5,3372.5,0.74107]
[1641995954078,0.27639994,3373.5,3372.7,0.00789335]
[1641995954380,14.2631268,3374.0,3372.7,0.00789335]
[1641995954381,6.0131268,3374.0,3373.2,1.48179]
[1641995954578,6.0131268,3374.0,3373.3,17.74079599]
[1641995954842,6.0131268,3374.0,3373.3,1.89374087]
[1641995955042,6.0131268,3374.0,3373.7,0.74081]
[1641995955245,0.00284212,3373.9,3373.7,0.74081]
[1641995955442,0.00284212,3373.9,3373.7,1.34081]
[1641995955643,0.00227369,3373.8,3373.7,1.37885228]
[1641995956747,0.00227369,3373.8,3373.7,1.73961637]
[1641995956947,0.00227369,3373.8,3373.7,26.49961637]
[1641995957349,0.09026859,3374.0,3373.8,7.02890144]
[1641995957551,0.09026859,3374.0,3373.9,0.69408786]
[1641995957852,0.09140544,3374.0,3373.9,5.89408786]
[1641995958048,0.09140544,3374.0,3373.9,5.862]
[1641995958250,4.15492963,3375.4,3374.0,0.03505005]
[1641995958251,4.1425,3375.4,3374.0,0.03505005]
[1641995958477,4.1425,3375.4,3374.9,0.03462041]
[1641995958678,0.00738951,3375.3,3374.9,0.31677291]
[1641995958882,0.00738951,3375.3,3374.9,0.3]
[1641995959081,4.1425,3375.4,3374.9,0.3]
[1641995959082,0.00682108,3375.2,3374.9,0.3]
[1641995959283,1.98547428,3375.0,3374.9,0.3]
[1641995959683,1.99115852,3375.0,3374.4,0.9545559]
[1641995959880,1.99115852,3375.0,3374.4,1.5545559]
[1641995960083,0.00511581,3374.9,3374.4,0.66454232]
[1641995960282,0.00511581,3374.9,3374.2,1.48139]
[1641995960283,0.00691532,3374.8,3374.2,1.25592792]
[1641995960487,0.01146271,3374.8,3374.2,1.25592792]
[1641995960685,0.00397897,3374.7,3374.4,1.0369495]
[1641995960884,0.00397897,3374.7,3374.5,0.00807541]
[1641995961085,4.15475977,3375.4,3374.4,0.74068]
[1641995961086,0.00341054,3374.6,3374.4,0.74068]
[1641995961283,0.00341054,3374.6,3374.4,1.34068]
[1641995961485,0.00284212,3374.5,3374.4,0.6]
[1641995962335,2.11713436,3375.2,3374.4,0.3]
[1641995962535,2.11713436,3375.2,3373.9,0.74081]
[1641995962735,0.00341054,3375.1,3373.9,0.74081]
[1641995962935,0.00341054,3375.1,3374.0,0.00284212]
[1641995962936,1.93469685,3374.5,3374.0,0.00284212]
[1641995963138,1.93469685,3374.5,3374.1,0.1481539]
[1641995963535,1.93469685,3374.5,3374.2,0.00170527]
[1641995964136,1.93469685,3374.5,3374.0,0.00284212]
[1641995964340,1.93469685,3374.5,3373.6,2.1399246]
[1641995964341,1.93469685,3374.5,3373.1,0.03890106]
[1641995964541,0.16279496,3374.4,3372.7,3.5]
[1641995964744,0.16279496,3374.4,3373.2,0.00454739]
[1641995964745,0.74111,3374.3,3373.2,0.00454739]
[1641995964942,0.1184,3374.2,3373.2,0.00454739]
[1641995965142,4.45113685,3374.2,3373.2,0.00454739]
[1641995965342,1.99813149,3373.4,3373.2,0.00454739]
[1641995966013,1.99813149,3373.4,3372.7,0.0073895]
[1641995966615,0.01205242,3372.9,3371.9,2.0]
[1641995966816,0.01205242,3372.9,3371.9,3.5]
[1641995967013,1.84200242,3373.2,3372.0,0.00397897]
[1641995967315,0.00227369,3373.1,3372.0,0.00397897]
[1641995967811,1.10065242,3373.2,3371.8,0.00511581]
[1641995967812,1.87692928,3372.8,3371.8,0.00511581]
[1641995968614,1.87692928,3372.8,3371.6,1.63701636]
[1641995968615,0.02489096,3372.7,3371.6,1.63701636]
[1641995968815,1.87692928,3372.8,3371.6,1.63701636]
[1641995969012,0.00887597,3372.7,3371.7,0.00568424]
[1641995969212,1.87692928,3372.8,3371.7,0.00568424]
[1641995969411,1.87692928,3372.8,3371.6,0.1482637]
[1641995969613,0.01364092,3372.7,3371.4,0.00738951]
[1641995969831,1.66385835,3372.0,3371.4,0.00738951]
[1641995970035,0.1186,3372.6,3371.4,0.00738951]
[1641995970244,2.49180754,3372.6,3370.8,0.01080005]
[1641995970639,3.49180754,3372.6,3370.8,0.01080005]
[1641995970941,3.49180754,3372.6,3370.8,0.15908715]
[1641995971137,2.02635557,3372.2,3370.8,0.15908715]
[1641995971340,2.02635557,3372.2,3370.9,0.01023163]
[1641995971740,2.02635557,3372.2,3370.8,0.01080005]
[1641995972440,0.13863971,3370.8,3370.7,1.0]
[1641995972838,0.13863971,3370.8,3370.7,5.5]
[1641995973487,0.13863971,3370.8,3370.7,6.24142]
[1641995973688,0.00738951,3372.1,3371.1,0.74138]
[1641995973889,0.00738951,3372.1,3371.2,0.02012043]
[1641995974091,0.00682108,3372.0,3371.2,0.02012043]
[1641995974489,7.32512004,3372.7,3370.8,9.1392991]
[1641995974490,0.00625266,3371.9,3370.8,9.1392991]
[1641995974690,0.03628198,3371.8,3370.8,9.17698503]
[1641995974890,0.00568424,3371.8,3370.8,26.53698503]
[1641995975193,4.14592004,3372.7,3371.3,0.74133]
[1641995975194,0.00511581,3371.7,3371.3,0.74133]
[1641995975591,0.00454739,3371.6,3371.4,0.74133]
[1641995976097,0.00397897,3371.5,3371.4,0.74133]
[1641995976493,6.25487928,3372.7,3371.4,0.74133]
[1641995976494,0.05588652,3372.6,3371.4,0.74133]
[1641995976692,0.05588652,3372.6,3371.3,0.74133]
[1641995976892,0.01023162,3372.6,3371.3,0.74133]
[1641995977339,0.01023162,3372.6,3371.3,1.48268]
[1641995977541,0.01023162,3372.6,3371.1,1.7791383]
[1641995977740,0.0335413,3372.5,3371.3,0.1482647]
[1641995977940,0.01023162,3372.6,3371.3,0.1482647]
[1641995978139,0.00909478,3372.4,3371.3,0.1482647]
[1641995978340,0.0096632,3372.5,3371.3,0.8896147]
[1641995978539,0.00852635,3372.3,3371.5,0.74131]
[1641995978743,0.00909478,3372.4,3371.5,0.74131]
[1641995978941,4.14592004,3372.7,3371.1,3.84315469]
[1641995978942,0.02522473,3372.1,3371.1,3.84315469]
[1641995979143,2.26361255,3372.3,3371.1,1.77796608]
[1641995979342,0.00682108,3372.0,3371.1,3.8110891]
[1641995979544,4.14592004,3372.7,3371.6,0.74131]
[1641995979545,0.00795793,3372.2,3371.6,0.74131]
[1641995979743,0.00625266,3371.9,3371.5,0.74131]
[1641995979943,0.00738951,3372.1,3371.2,0.362]
[1641995980146,0.00568424,3371.8,3371.2,0.362]
[1641995980344,0.00682108,3372.0,3371.2,0.362]
[1641995980544,0.00511581,3371.7,3371.2,0.362]
[1641995980744,0.00625266,3371.9,3371.2,0.362]
[1641995980986,0.00454739,3371.6,3371.2,0.362]
[1641995981294,0.00397897,3371.5,3371.3,0.74136]
[1641995981584,0.00341054,3371.4,3371.2,0.362]
[1641995981986,0.00284212,3371.3,3371.2,0.362]
[1641995982287,2.01437024,3372.5,3371.2,0.362]
[1641995982487,2.01437024,3372.5,3371.0,0.21267308]
[1641995982488,0.89074692,3371.4,3371.0,0.21267308]
[1641995982687,2.01437024,3372.5,3371.1,0.362]
[1641995982688,0.02221953,3371.3,3371.1,0.362]
[1641995982886,0.00568423,3372.3,3371.1,0.36313685]
[1641995983290,1.1887,3372.4,3371.1,0.36313685]
[1641995983291,0.00511581,3372.2,3371.1,0.36313685]
[1641995983487,1.95001335,3371.3,3371.1,0.00113685]
[1641995983992,1.95001335,3371.3,3370.4,0.00511581]
[1641995983993,4.95001335,3371.3,3370.4,0.00511581]
[1641995984292,0.02523826,3371.2,3370.4,0.00511581]
[1641995984949,3.0,3371.3,3370.4,0.00511581]
[1641995985152,0.89083751,3371.0,3370.4,0.00511581]
[1641995985349,3.0,3371.3,3370.4,0.00511581]
[1641995985752,3.0,3371.3,3370.5,0.02203848]
[1641995986152,3.0,3371.3,3370.6,0.00397897]
[1641995986553,0.03977844,3371.2,3370.6,0.00397897]
[1641995986750,0.03977844,3371.2,3370.3,1.33762037]
[1641995986950,0.00284212,3371.1,3370.4,1.0]
[1641995987156,0.00284212,3371.1,3370.4,0.00113684]
[1641995987361,0.0022737,3371.0,3370.4,0.00113684]
[1641995987757,0.00170527,3370.9,3370.4,0.00113684]
[1641995988159,0.14832876,3370.4,3370.3,1.33762037]
[1641995989490,0.14832876,3370.4,3370.2,1.48305]
[1641995990090,0.14832876,3370.4,3370.2,2.22458]
[1641995990290,0.14832876,3370.4,3370.2,2.3728833]
[1641995990489,3.17244738,3371.5,3370.2,2.3728833]
[1641995990691,3.17244738,3371.5,3370.3,0.00511581]
[1641995990892,0.00113685,3371.4,3370.3,0.00511581]
[1641995991493,0.00113685,3371.4,3370.4,0.74155]
[1641995991696,0.00113685,3371.4,3370.2,0.74543202]
[1641995991891,0.00568424,3371.3,3370.2,2.80714241]
[1641995992092,0.00568424,3371.3,3370.3,1.0]
[1641995992340,0.00511581,3371.2,3370.1,0.01902841]
[1641995992542,0.02953729,3370.3,3370.1,0.01902841]
[1641995992742,0.89099522,3370.4,3370.1,0.01902841]
[1641995993138,0.00454739,3371.1,3370.1,0.01902841]
[1641995993341,0.00454739,3371.1,3370.2,0.67148334]
[1641995993538,0.00397897,3371.0,3370.5,0.1482915]
[1641995993738,0.00397897,3371.0,3370.6,0.362]
[1641995993937,0.00341054,3370.9,3370.6,0.362]
[1641995994342,0.00284212,3370.8,3370.6,1.10341]
[1641995994540,0.00284212,3370.8,3370.6,2.84487]
[1641995994739,0.0022737,3370.7,3370.6,2.84487]
[1641995994941,0.0022737,3370.7,3370.6,4.96991196]
[1641995995340,0.0022737,3370.7,3370.6,4.07873903]
[1641995995540,0.0022737,3370.7,3370.6,1.95369707]
[1641995995740,0.0022737,3370.7,3370.6,1.99114881]
[1641995995985,0.0022737,3370.7,3370.6,5.49114881]
[1641995996584,0.0022737,3370.7,3370.6,5.45369707]
[1641995996786,0.0022737,3370.7,3370.6,4.56279863]
[1641995996988,0.0022737,3370.7,3370.6,4.60217929]
[1641995997388,0.0022737,3370.7,3370.6,7.80217929]
[1641995997790,0.0022737,3370.7,3370.6,7.76279863]
[1641995997989,0.0022737,3370.7,3370.6,7.79703349]
[1641995998591,0.0022737,3370.7,3370.6,7.76279863]
[1641995998791,0.0022737,3370.7,3370.6,4.56279863]
[1641995999390,0.0022737,3370.7,3370.6,7.11279863]
[1641995999836,0.0022737,3370.7,3370.6,4.56279863]
[1641996000238,2.9769437,3371.2,3370.7,3.85]
[1641996000441,2.8787137,3371.2,3371.0,3.5]
[1641996000840,2.8787137,3371.2,3371.1,3.35317769]
[1641996001042,2.8787137,3371.2,3371.1,3.89677252]
[1641996001242,2.8787137,3371.2,3371.1,3.89586278]
[1641996001539,3.84309997,3372.3,3371.6,0.1482483]
[1641996001540,3.7049,3372.3,3371.6,0.1482483]
[1641996001740,3.7049,3372.3,3371.8,2.5199321]
[1641996001939,3.70156721,3372.3,3371.8,2.5199321]
[1641996002143,3.61572518,3372.3,3371.8,1.7787321]
[1641996002353,3.61572518,3372.3,3372.0,3.5]
[1641996002544,3.61572518,3372.3,3372.1,1.74122]
[1641996002948,1.3455,3373.3,3372.2,2.31714285]
[1641996002949,0.1186,3373.3,3372.2,2.31714285]
[1641996003148,1.1888,3373.9,3372.2,2.35433692]
[1641996003346,5.9529,3374.8,3372.2,2.35433692]
[1641996003347,11.6542,3374.1,3372.4,0.01351617]
[1641996003586,10.5,3374.1,3373.0,0.74092]
[1641996003784,1.1975,3374.7,3373.5,0.74076]
[1641996003986,0.01247066,3375.1,3373.5,0.77942687]
[1641996004184,0.1184,3375.4,3373.6,2.46173315]
[1641996004388,0.1184,3375.4,3373.7,2.08723958]
[1641996004389,0.01254209,3375.4,3373.7,2.08723958]
[1641996004585,3.7572,3374.8,3373.7,19.83421779]
[1641996004790,3.7572,3374.8,3373.8,0.74078]
[1641996004987,0.01205342,3374.5,3373.8,0.74078]
[1641996005188,0.01205342,3374.5,3373.6,3.5]
[1641996005388,4.58188152,3374.0,3373.6,3.5]
[1641996005594,2.8,3374.0,3373.6,3.5]
[1641996005989,0.01818955,3373.9,3373.7,1.0]
[1641996006190,0.01818955,3373.9,3373.7,0.10939059]
[1641996006389,0.01762112,3373.8,3373.7,0.10939059]
[1641996006590,0.01762112,3373.8,3373.6,3.5]
[1641996006793,0.01762112,3373.8,3372.8,0.362]
[1641996006794,0.06451539,3373.7,3372.8,0.362]
[1641996006990,0.08156809,3373.7,3373.0,1.48185]
[1641996007238,0.01648428,3373.6,3372.9,3.5]
[1641996007635,0.01591585,3373.5,3372.9,3.5]
[1641996008034,0.03846641,3373.4,3372.9,3.5]
[1641996008236,0.01534743,3373.4,3372.9,3.5]
[1641996008434,0.01477901,3373.3,3372.9,3.5]
[1641996008835,0.01421058,3373.2,3372.9,3.5]
[1641996009236,0.01364216,3373.1,3372.9,3.5]
[1641996009640,0.01307374,3373.0,3372.9,3.5]
[1641996010638,0.01307374,3373.0,3372.2,0.77398287]
[1641996010991,0.01250531,3372.9,3372.2,0.77398287]
[1641996011190,0.01250531,3372.9,3372.2,2.37398287]
[1641996011395,2.19051659,3373.5,3373.2,0.00709152]
[1641996011590,0.1186,3374.1,3373.2,0.00709152]
[1641996011791,0.00341054,3373.4,3373.2,0.00709152]
[1641996012190,3.55284212,3373.3,3373.2,0.00709152]
[1641996012598,3.55682108,3373.3,3373.2,0.00709152]
[1641996014299,9.48200666,3373.3,3373.2,0.42983968]
[1641996014497,9.48200666,3373.3,3372.5,0.01214507]
[1641996014498,7.4298,3373.2,3372.5,0.01214507]
[1641996014763,0.02122267,3373.0,3372.5,0.01214507]
[1641996014941,0.1184,3373.1,3372.6,0.00113685]
[1641996014942,0.00170527,3373.1,3372.6,0.00113685]
[1641996015144,1.00170527,3373.1,3372.6,0.00113685]
[1641996015341,7.45,3372.9,3372.2,0.03283287]
[1641996015542,7.45,3372.7,3371.8,0.04497794]
[1641996015741,0.1186,3372.6,3372.3,0.00170527]
[1641996015944,0.1186,3372.6,3371.8,0.04497794]
[1641996015945,0.01215445,3372.5,3371.8,0.04497794]
[1641996016144,0.01215445,3372.5,3371.9,0.00227369]
[1641996016145,0.16239806,3372.4,3371.9,0.00227369]
[1641996016341,0.16239806,3372.4,3371.5,0.05352066]
[1641996016342,8.93319,3372.2,3371.5,0.05352066]
[1641996016544,8.93319,3372.2,3371.0,6.11]
[1641996016545,0.0129603,3371.7,3371.0,6.11]
[1641996016744,0.0129603,3371.7,3371.6,0.00170527]
[1641996016948,5.55,3371.6,3371.2,0.04497794]
[1641996017147,1.6826874,3371.5,3371.3,0.00170527]
[1641996017549,0.7417,3371.7,3371.3,0.00170527]
[1641996017754,0.00113685,3372.1,3371.3,0.00170527]
[1641996017950,1.2277,3372.4,3370.8,0.0206878]
[1641996017951,0.00227369,3372.0,3370.8,0.0206878]
[1641996018157,0.02345757,3371.9,3370.8,0.0206878]
[1641996018349,0.00341054,3371.9,3370.9,0.0022737]
[1641996018581,2.18138696,3371.7,3370.9,0.0022737]
[1641996018787,2.20203644,3371.7,3370.9,0.0022737]
[1641996018985,0.00170527,3371.6,3370.9,0.0022737]
[1641996019383,0.00113685,3371.5,3370.9,0.0022737]
[1641996019585,0.03387724,3371.4,3370.9,0.0022737]
[1641996019786,0.03387724,3371.4,3370.9,0.3022737]
[1641996019985,1.86260533,3371.1,3370.9,0.0022737]
[1641996020185,0.00170527,3371.6,3371.0,0.00170527]
[1641996020401,0.00113685,3371.5,3371.0,0.00170527]
[1641996020789,0.00170527,3371.6,3371.0,0.00170527]
[1641996021185,0.00113685,3371.5,3371.0,0.00170527]
[1641996021589,1.84003129,3371.4,3371.0,0.00170527]
[1641996021789,0.00170527,3371.6,3371.0,0.00170527]
[1641996022243,0.00113685,3371.5,3371.0,0.00170527]
[1641996022637,0.00454739,3372.1,3371.0,0.00170527]
[1641996022840,0.03463565,3371.8,3371.0,0.00170527]
[1641996023042,3.638,3372.2,3371.0,0.00170527]
[1641996023043,0.00397896,3372.0,3371.0,0.00170527]
[1641996023241,0.13819997,3372.3,3371.0,0.00170527]
[1641996023242,0.00227369,3371.7,3371.0,0.00170527]
[1641996023443,0.00341054,3371.9,3371.1,0.362]
[1641996023642,0.00170527,3371.6,3371.3,0.74117]
[1641996023842,0.00284212,3371.8,3371.4,0.362]
[1641996024040,0.1186,3372.7,3371.4,0.662]
[1641996024041,0.00113685,3371.5,3371.4,0.662]
[1641996024241,0.1186,3372.7,3371.4,8.112]
[1641996024242,0.00227369,3371.7,3371.4,8.112]
[1641996024445,0.00113685,3371.5,3371.4,8.112]
[1641996024642,0.00170527,3371.6,3371.4,8.112]
[1641996024841,0.00113685,3371.5,3371.4,0.662]
[1641996025041,0.00113685,3371.5,3371.4,0.362]
[1641996025242,2.80113685,3371.5,3371.4,0.362]
[1641996025442,2.80113685,3371.5,3371.0,0.00170527]
[1641996025443,4.65979948,3371.5,3371.0,0.00170527]
[1641996025649,7.45,3371.4,3370.8,2.61062763]
[1641996025844,7.45,3371.4,3370.7,0.04137558]
[1641996025845,7.45227369,3371.4,3370.7,0.04137558]
[1641996026089,0.00170527,3371.3,3370.6,0.02068779]
[1641996026290,0.00170527,3371.3,3370.8,0.00113685]
[1641996026291,7.45,3371.2,3370.8,0.00113685]
[1641996026492,1.1616562,3371.1,3370.8,0.00113685]
[1641996026688,0.01279149,3370.9,3370.3,0.05352065]
[1641996026888,0.74191,3370.7,3370.4,0.00227369]
[1641996027090,0.0206741,3370.6,3370.4,0.00227369]
[1641996027489,0.0206741,3370.6,3370.2,0.03283286]
[1641996027490,9.30718762,3370.5,3370.2,0.03283286]
[1641996027691,0.03902647,3370.3,3369.9,0.02068779]
[1641996027888,0.01224706,3370.3,3369.9,0.02068779]
[1641996028089,0.01224706,3370.3,3370.0,0.0022737]
[1641996028090,1.0,3370.2,3370.0,0.0022737]
[1641996028291,0.01224706,3370.3,3370.0,0.0022737]
[1641996028890,0.03856775,3370.2,3370.0,0.0022737]
[1641996029301,1.85718762,3370.5,3370.0,0.0022737]
[1641996029494,10.3667,3371.2,3370.0,0.0022737]
[1641996029950,0.00284211,3370.9,3370.0,0.0022737]
[1641996030150,0.00284211,3370.9,3370.1,0.02875383]
[1641996030350,10.3667,3371.2,3370.0,0.0022737]
[1641996030351,1.6470788,3370.3,3370.0,0.0022737]
[1641996030553,1.6470788,3370.3,3370.2,0.00113685]
[1641996030751,0.00397896,3371.1,3370.2,0.00113685]
[1641996030954,0.12257896,3371.1,3370.2,0.00113685]
[1641996031152,0.12257896,3371.1,3370.7,0.01909685]
[1641996031153,0.00341054,3371.0,3370.7,0.01909685]
[1641996031352,0.86048,3370.9,3370.7,0.01909685]
[1641996031570,0.86048,3370.9,3369.7,0.01320022]
[1641996031571,10.12468153,3370.8,3370.0,0.00113685]
[1641996031753,2.1473823,3368.9,3368.6,4.02262036]
[1641996032054,2.1473823,3368.9,3367.7,0.74213]
[1641996032055,0.02976081,3368.8,3367.7,0.74213]
[1641996032255,0.02976081,3368.8,3367.6,2.4706551]
[1641996032256,0.02976081,3368.8,3367.6,6.30701744]
[1641996032453,0.02976081,3368.8,3368.4,0.00909477]
[1641996032656,5.4,3368.8,3367.7,0.01214507]
[1641996032855,5.4,3368.8,3367.6,6.30701744]
[1641996032856,1.94967649,3368.0,3367.6,6.21916251]
[1641996033154,1.94967649,3368.0,3367.8,0.00341054]
[1641996033993,7.45,3367.9,3366.4,6.05509254]
[1641996034195,7.47484662,3367.9,3366.4,6.05509254]
[1641996034392,7.45,3367.8,3366.4,6.01248205]
[1641996034592,2.22287087,3366.8,3366.4,6.01248205]
[1641996034792,2.00682108,3367.7,3366.4,6.01248205]
[1641996034996,0.00113685,3366.7,3366.4,6.01248205]
[1641996035295,6.7062,3367.9,3366.4,2.20584386]
[1641996035296,2.0,3367.8,3366.4,2.20584386]
[1641996035493,6.71415793,3367.9,3366.4,0.97051631]
[1641996035695,0.00682108,3367.7,3366.5,0.362]
[1641996035894,6.7062,3367.9,3366.5,0.362]
[1641996035895,0.00738951,3367.8,3366.5,0.37469205]
[1641996036099,0.00625266,3367.6,3366.5,0.37469205]
[1641996036293,0.00682108,3367.7,3366.5,0.37469205]
[1641996036494,0.00568424,3367.5,3366.5,0.37469205]
[1641996036696,0.00625266,3367.6,3366.6,2.53829352]
[1641996036895,3.9062,3367.9,3367.4,1.0]
[1641996037096,0.13819997,3368.3,3367.9,0.07423023]
[1641996037740,1.81908578,3368.3,3367.9,0.07423023]
[1641996037941,0.13819997,3368.3,3367.9,0.07423023]
[1641996038748,0.13819997,3368.3,3367.2,0.52423281]
[1641996038944,0.13819997,3368.3,3366.9,2.48459]
[1641996038945,0.13819997,3368.3,3366.9,2.11651539]
[1641996039147,0.0375555,3368.2,3366.9,2.11651539]
[1641996039353,0.01249019,3368.6,3367.3,0.0742209]
[1641996039354,0.02245052,3368.5,3367.3,0.0742209]
[1641996039545,0.01136847,3368.5,3367.3,0.0742209]
[1641996039745,0.01136847,3368.5,3367.3,1.48434]
[1641996040148,0.01136847,3368.5,3367.3,1.78434]
[1641996040345,0.01136847,3368.5,3367.4,0.3]
[1641996040988,0.01136847,3368.5,3366.7,4.3259]
[1641996041193,0.01136847,3368.5,3366.7,3.9639]
[1641996041194,1.88678127,3367.8,3366.7,3.9639]
[1641996041415,0.02820262,3367.7,3366.4,7.08051631]
[1641996041595,0.00682108,3367.7,3366.5,3.80663819]
[1641996041795,0.01228913,3366.7,3364.6,1.74656368]
[1641996042095,0.01228913,3366.7,3364.7,0.01023162]
[1641996042096,0.01228712,3365.1,3364.7,0.01023162]
[1641996042294,0.01228712,3365.1,3364.1,5.14719813]
[1641996042295,1.8448549,3364.4,3364.1,0.25]
[1641996042495,0.03877927,3364.3,3363.6,7.60677903]
[1641996042698,0.00170527,3365.0,3363.6,7.60677903]
[1641996042897,0.00170527,3365.0,3363.7,0.00568424]
[1641996043094,0.00113685,3364.9,3363.7,0.29798424]
[1641996043494,0.00170527,3365.0,3364.7,2.53927232]
[1641996043897,0.00113685,3364.9,3364.7,2.53927232]
[1641996044093,0.00113685,3364.9,3364.7,1.53927232]
[1641996044297,0.00227369,3365.1,3364.7,1.53927232]
[1641996044496,0.00227369,3365.1,3364.7,1.48927232]
[1641996044746,0.00170527,3365.0,3364.7,0.15227232]
[1641996045140,2.59813773,3365.6,3363.8,0.00511581]
[1641996045141,0.00113685,3364.9,3363.8,0.00511581]
[1641996045341,0.1188,3364.8,3363.8,0.00511581]
[1641996045542,0.01270912,3365.3,3363.7,0.24741581]
[1641996045543,0.02834643,3364.7,3363.7,0.24741581]
[1641996045740,0.02834643,3364.7,3363.4,1.0131268]
[1641996045741,0.00454739,3365.5,3363.4,0.40260476]
[1641996045941,0.00454739,3364.6,3363.5,2.0]
[1641996046143,2.85,3365.4,3363.5,2.0]
[1641996046144,2.85909477,3365.4,3363.5,0.00170527]
[1641996046345,0.00397896,3364.5,3363.5,0.00170527]
[1641996046548,2.98819997,3365.4,3363.5,0.00170527]
[1641996046549,0.02975435,3364.4,3363.5,0.00170527]
[1641996046744,0.00341054,3364.4,3363.5,0.00170527]
[1641996046949,0.00284212,3364.3,3363.5,0.00170527]
[1641996047346,0.00227369,3364.2,3363.5,0.00170527]
[1641996047547,0.01211201,3365.2,3363.5,0.00170527]
[1641996047949,2.22563378,3365.0,3363.7,0.02908274]
[1641996048145,2.22563378,3365.0,3363.6,6.4]
[1641996048347,2.22563378,3365.0,3363.8,0.0073895]
[1641996048603,0.02148914,3364.9,3363.7,0.00795793]
[1641996048801,0.02148914,3364.9,3363.0,3.19130555]
[1641996048802,7.45,3364.8,3363.0,3.19130555]
[1641996049003,0.01216502,3364.3,3363.0,3.19130555]
[1641996049205,0.01216502,3364.3,3363.1,0.00341054]
[1641996049401,2.22563378,3365.0,3363.1,0.00341054]
[1641996049402,0.00284212,3364.2,3363.1,0.00341054]
[1641996049903,0.0022737,3364.1,3363.1,0.00341054]
[1641996050104,0.03191262,3364.0,3363.1,0.00341054]
[1641996050304,0.00170528,3364.0,3363.1,0.00341054]
[1641996050502,0.05436252,3364.2,3363.1,0.00341054]
[1641996050503,0.00113685,3363.9,3363.1,0.00341054]
[1641996050905,0.0022737,3364.1,3363.1,0.00341054]
[1641996051111,0.0022737,3364.1,3363.2,1.0]
[1641996051411,0.00170528,3364.0,3363.3,0.00227369]
[1641996051605,0.36171857,3364.0,3363.3,0.00227369]
[1641996051808,0.36171857,3364.0,3363.3,0.00397897]
[1641996052254,0.04404225,3363.9,3363.3,0.00397897]
[1641996052445,0.04404225,3363.9,3363.2,0.3]
[1641996052644,0.00284212,3363.8,3363.0,3.19130555]
[1641996052844,0.00284212,3363.8,3362.4,2.22916]
[1641996053049,0.00227369,3363.7,3363.1,0.00113685]
[1641996053445,0.00227369,3363.7,3362.6,0.00397896]
[1641996053446,0.00170527,3363.6,3362.6,0.00397896]
[1641996053645,0.04168906,3363.4,3362.2,3.7768]
[1641996053846,0.04168906,3363.4,3361.7,1.39391052]
[1641996053847,0.05464185,3363.4,3361.8,5.6936]
[1641996054045,0.05464185,3363.4,3362.3,0.00170527]
[1641996054046,0.00397896,3363.3,3362.3,0.00170527]
[1641996054447,0.00341054,3363.2,3362.3,0.00170527]
[1641996054850,0.00284211,3363.1,3362.3,0.00170527]
[1641996055049,0.00284211,3363.1,3361.8,5.6936]
[1641996055050,0.89135446,3362.0,3361.8,5.87344468]